Workbook

Sheet Input data
A1: COLLISION RISK ASSESSMENT | F1: ="used in overall collision risk sheet" -> used in overall collision risk sheet
A2: Sheet 1 - Input data | F2: used in single transit collision risk sheet or extended model
F3: used in available hours sheet
F4: used in large array correction sheet
F5: not used in calculation but stated for reference
B7: Units | C7: Value | E7: Data sources
A8: Bird data
A9: Species name | C9: Gannet
A10: Bird length | B10: m | C10: 0.94
A11: Wingspan | B11: m | C11: 1.72
A12: Flight speed | B12: m/sec | C12: 14.9
A13: Nocturnal activity factor (1-5) | C13: 2
A14: Flight type, flapping or gliding | C14: gliding
E16: Data sources
A17: Bird survey data | D17: Jan | E17: Feb | F17: Mar | G17: Apr | H17: May | I17: Jun | J17: Jul | K17: Aug | L17: Sep | M17: Oct | N17: Nov | O17: Dec
A18: Daytime bird density | B18: birds/sq km | D18: 0.05 | E18: 0.47 | F18: 1.49 | G18: 1.4 | H18: 0.88 | I18: 1.04 | J18: 0.57 | K18: 1.8 | L18: 2.79 | M18: 0.83 | N18: 0.5 | O18: 0.12
A19: Proportion at rotor height | B19: % | C19: 0.0828
A20: Proportion of flights upwind | B20: % | C20: 0.5
B22: Units | C22: Value | E22: Data sources
A23: Windfarm data
A24: Name of windfarm site | C24: Worked example site
A25: Latitude | B25: degrees | C25: 55.8
A26: Number of turbines | C26: 200
A27: Width of windfarm | B27: km | C27: 7.8
A28: Tidal offset | B28: m | C28: 2.5
B30: Units | C30: Value | E30: Data sources
A31: Turbine data
A32: Turbine model | C32: 4MW turbine
A33: No of blades | C33: 3
A34: Rotation speed | B34: rpm | C34: 9.9
A35: Rotor radius | B35: m | C35: 57.5
A36: Hub height | B36: m | C36: 80 | D36: Jan | E36: Feb | F36: Mar | G36: Apr | H36: May | I36: Jun | J36: Jul | K36: Aug | L36: Sep | M36: Oct | N36: Nov | O36: Dec
A37: Monthly proportion of time operational | B37: % | D37: 0.846 | E37: 0.846 | F37: 0.846 | G37: 0.773 | H37: 0.655 | I37: 0.638 | J37: 0.646 | K37: 0.718 | L37: 0.736 | M37: 0.79 | N37: 0.818 | O37: 0.846
A38: Max blade width | B38: m | C38: 4.21
A39: Pitch | B39: degrees | C39: 15
A42: Avoidance rates used in presenting results | C42: 0.96 | E42: Data sources (if applicable)
C43: 0.98
C44: 0.99
C45: 0.995

Sheet Overall collision risk
A1: COLLISION RISK ASSESSMENT
A2: Sheet 2 - Overall collision risk | D2: All data input on Sheet 1: | J2: from Sheet 1 - input data
D3: no data entry needed on this sheet! | J3: from Sheet 6 - available hours
A4: Bird details: | J4: from Sheet 3 - single transit collision risk
B5: Species | D5: ='Input data'!C9 -> Gannet | J5: from survey data
B6: Flight speed | C6: m/sec | D6: ='Input data'!C12 -> 14.9 | J6: calculated field
B7: Nocturnal activity factor (1-5) | D7: ='Input data'!C13 -> 2
B8: Nocturnal activity (% of daytime) | D8: =(D7-1)*0.25 -> 0.25
A9: Windfarm data:
B10: Latitude | C10: degrees | D10: ='Input data'!C25 -> 55.8
B11: Number of turbines | D11: ='Input data'!C26 -> 200
B12: Rotor radius | C12: m | D12: ='Input data'!C35 -> 57.5
B13: Minimum height of rotor | C13: m | D13: ='Input data'!C36 -> 80
B14: Total rotor frontal area | C14: sq m | D14: =D11*PI()*D12*D12 -> 2077378.142
E15: Jan | F15: Feb | G15: Mar | H15: Apr | I15: May | J15: Jun | K15: Jul | L15: Aug | M15: Sep | N15: Oct | O15: Nov | P15: Dec | R15: year average
B16: Proportion of time operational | C16: % | E16: ='Input data'!D37 -> 0.846 | F16: ='Input data'!E37 -> 0.846 | G16: ='Input data'!F37 -> 0.846 | H16: ='Input data'!G37 -> 0.773 | I16: ='Input data'!H37 -> 0.655 | J16: ='Input data'!I37 -> 0.638 | K16: ='Input data'!J37 -> 0.646 | L16: ='Input data'!K37 -> 0.718 | M16: ='Input data'!L37 -> 0.736 | N16: ='Input data'!M37 -> 0.79 | O16: ='Input data'!N37 -> 0.818 | P16: ='Input data'!O37 -> 0.846 | R16: =SUM(E16:P16)/12 -> 0.7631666667
A18: Stage A - flight activity
B19: Daytime areal bird density | C19: birds/sq km | E19: ='Input data'!D18 -> 0.05 | F19: ='Input data'!E18 -> 0.47 | G19: ='Input data'!F18 -> 1.49 | H19: ='Input data'!G18 -> 1.4 | I19: ='Input data'!H18 -> 0.88 | J19: ='Input data'!I18 -> 1.04 | K19: ='Input data'!J18 -> 0.57 | L19: ='Input data'!K18 -> 1.8 | M19: ='Input data'!L18 -> 2.79 | N19: ='Input data'!M18 -> 0.83 | O19: ='Input data'!N18 -> 0.5 | P19: ='Input data'!O18 -> 0.12
B20: Proportion at rotor height | C20: % | D20: ='Input data'!C19 -> 0.0828
B21: Total daylight hours per month | C21: hrs | E21: ='Daylight and night hours'!F10 -> 238.788882 | F21: ='Daylight and night hours'!G10 -> 267.4503139 | G21: ='Daylight and night hours'!H10 -> 365.6177067 | H21: ='Daylight and night hours'!I10 -> 424.0422743 | I21: ='Daylight and night hours'!J10 -> 503.6111447 | J21: ='Daylight and night hours'!K10 -> 523.4837294 | K21: ='Daylight and night hours'!L10 -> 524.8917234 | L21: ='Daylight and night hours'!M10 -> 467.391669 | M21: ='Daylight and night hours'!N10 -> 384.5526152 | N21: ='Daylight and night hours'!O10 -> 325.483178 | O21: ='Daylight and night hours'!P10 -> 250.821429 | P21: ='Daylight and night hours'!Q10 -> 220.7904523
B22: Total night hours per month | C22: hrs | E22: ='Daylight and night hours'!F14 -> 505.211118 | F22: ='Daylight and night hours'!G14 -> 404.5496861 | G22: ='Daylight and night hours'!H14 -> 378.3822933 | H22: ='Daylight and night hours'!I14 -> 295.9577257 | I22: ='Daylight and night hours'!J14 -> 240.3888553 | J22: ='Daylight and night hours'!K14 -> 196.5162706 | K22: ='Daylight and night hours'!L14 -> 219.1082766 | L22: ='Daylight and night hours'!M14 -> 276.608331 | M22: ='Daylight and night hours'!N14 -> 335.4473848 | N22: ='Daylight and night hours'!O14 -> 418.516822 | O22: ='Daylight and night hours'!P14 -> 469.178571 | P22: ='Daylight and night hours'!Q14 -> 523.2095477
B23: Flux factor | E23: =$D6*E19/(2*$D12)*$D14*(E21+$D8*E22)*3600/1000000 -> 17687.98678 | F23: 167859.2293 | G23: 664434.0823 | H23: 675602.9138 | I23: 480666.2544 | J23: 577033.2986 | K23: 320155.7176 | L23: 935802.3541 | M23: 1266312.764 | N23: 345912.7146 | O23: 178345.1362 | P23: 40881.5877
A25: Option 1 -Basic model - Stages B, C and D | R25: per annum
B26: Potential bird transits through rotors | E26: =E23*$D20 -> 1464.565305 | F26: 13898.74418 | G26: 55015.14202 | H26: 55939.92127 | I26: 39799.16586 | J26: 47778.35712 | K26: 26508.89342 | L26: 77484.43492 | M26: 104850.6969 | N26: 28641.57277 | O26: 14766.97728 | P26: 3384.995462 | R26: =SUM(E26:P26) -> 469533.4665
B27: Collision risk for single rotor transit | C27: (from sheet 3) | D27: ='Single transit collision risk'!I39 -> 0.07592634893
B28: Collisions for entire windfarm, allowing for non-op time, assuming no avoidance | C28: birds per month or year | E28: =E26*$D$27*E16 -> 94.07443555 | F28: 892.7676419 | G28: 3533.825644 | H28: 3283.173708 | I28: 1979.282507 | J28: 2314.431905 | K28: 1300.219376 | L28: 4224.073154 | M28: 5859.244919 | N28: 1717.973538 | O28: 917.1437837 | P28: 217.4307532 | R28: =SUM(E28:P28) -> 26333.64136
A30: Option 2-Basic model using proportion from flight distribution | E30: =E28*$D33/$D20 -> 64.4965183 | F30: 612.0728147 | G30: 2422.756501 | H30: 2250.911971 | I30: 1356.976842 | J30: 1586.75201 | K30: 891.4177615 | L30: 2895.983483 | M30: 4017.041346 | N30: 1177.825953 | O30: 628.7848605 | P30: 149.0684103 | R30: =SUM(E30:P30) -> 18054.08847
A32: Option 3-Advanced model using flight height distribution | D32: =Flightheight!B6 -> Gannet
B33: Proportion at rotor height | C33: (from sheet 4) | D33: =Extended!M45 -> 0.05676687492
B34: Potential bird transits through rotors | C34: Flux integral | D34: =Extended!M47 -> 0.02718899569 | E34: =E23*$D34 -> 480.9185962 | F34: 4563.923861 | G34: 18065.2954 | H34: 18368.96471 | I34: 13068.83272 | J34: 15688.95587 | K34: 8704.712427 | L34: 25443.52617 | M34: 34429.77229 | N34: 9405.019307 | O34: 4849.02514 | P34: 1111.529312 | R34: =SUM(E34:P34) -> 154180.4758
B35: Collisions assuming no avoidance | C35: Collision integral | D35: =Extended!M51 ->  | E35: =E23*$D35*E16 ->  | R35: =SUM(E35:P35) -> 
B36: Average collision risk for single rotor transit | D36: =D35/D34 -> 
A38: Stage E - applying avoidance rates
B39: Using which of above options? | C39: Option 3 | E39: =IF($C39="Option 1",E28,IF($C39="Option 2",E30,IF($C39="Option 3",E35,0))) ->  | R39: =SUM(E39:P39) -> 
A41: Collisions assuming avoidance rate | C41: birds per month or year | D41: ='Input data'!C42 -> 0.96 | E41: =E$39*(1-$D41) ->  | F41: =F$39*(1-$D41) ->  | R41: =SUM(E41:P41) -> 
D42: ='Input data'!C43 -> 0.98 | E42: =E$39*(1-$D42) ->  | R42: =SUM(E42:P42) -> 
D43: ='Input data'!C44 -> 0.99 | E43: =E$39*(1-$D43) ->  | R43: =SUM(E43:P43) -> 
D44: ='Input data'!C45 -> 0.995 | E44: =E$39*(1-$D44) ->  | R44: =SUM(E44:P44) -> 
A46: Collisions after applying large array correction | D46: ='Input data'!C42 -> 0.96 | E46: =E41*'Large array correction'!$B18 ->  | F46: =F41*'Large array correction'!$B18 ->  | G46: =G41*'Large array correction'!$B18 ->  | H46: =H41*'Large array correction'!$B18 ->  | I46: =I41*'Large array correction'!$B18 ->  | J46: =J41*'Large array correction'!$B18 ->  | K46: =K41*'Large array correction'!$B18 ->  | L46: =L41*'Large array correction'!$B18 ->  | M46: =M41*'Large array correction'!$B18 ->  | N46: =N41*'Large array correction'!$B18 ->  | O46: =O41*'Large array correction'!$B18 ->  | P46: =P41*'Large array correction'!$B18 ->  | R46: =R41*'Large array correction'!$B18 -> 
D47: ='Input data'!C43 -> 0.98 | E47: =E42*'Large array correction'!$C18 ->  | F47: =F42*'Large array correction'!$C18 ->  | G47: =G42*'Large array correction'!$C18 ->  | H47: =H42*'Large array correction'!$C18 ->  | I47: =I42*'Large array correction'!$C18 ->  | J47: =J42*'Large array correction'!$C18 ->  | K47: =K42*'Large array correction'!$C18 ->  | L47: =L42*'Large array correction'!$C18 ->  | M47: =M42*'Large array correction'!$C18 ->  | N47: =N42*'Large array correction'!$C18 ->  | O47: =O42*'Large array correction'!$C18 ->  | P47: =P42*'Large array correction'!$C18 ->  | R47: =R42*'Large array correction'!$C18 -> 
D48: ='Input data'!C44 -> 0.99 | E48: =E43*'Large array correction'!$D18 ->  | F48: =F43*'Large array correction'!$D18 ->  | G48: =G43*'Large array correction'!$D18 ->  | H48: =H43*'Large array correction'!$D18 ->  | I48: =I43*'Large array correction'!$D18 ->  | J48: =J43*'Large array correction'!$D18 ->  | K48: =K43*'Large array correction'!$D18 ->  | L48: =L43*'Large array correction'!$D18 ->  | M48: =M43*'Large array correction'!$D18 ->  | N48: =N43*'Large array correction'!$D18 ->  | O48: =O43*'Large array correction'!$D18 ->  | P48: =P43*'Large array correction'!$D18 ->  | R48: =R43*'Large array correction'!$D18 -> 
D49: ='Input data'!C45 -> 0.995 | E49: =E44*'Large array correction'!$E18 ->  | F49: =F44*'Large array correction'!$E18 ->  | G49: =G44*'Large array correction'!$E18 ->  | H49: =H44*'Large array correction'!$E18 ->  | I49: =I44*'Large array correction'!$E18 ->  | J49: =J44*'Large array correction'!$E18 ->  | K49: =K44*'Large array correction'!$E18 ->  | L49: =L44*'Large array correction'!$E18 ->  | M49: =M44*'Large array correction'!$E18 ->  | N49: =N44*'Large array correction'!$E18 ->  | O49: =O44*'Large array correction'!$E18 ->  | P49: =P44*'Large array correction'!$E18 ->  | R49: =R44*'Large array correction'!$E18 -> 

Sheet Single transit collision risk
A1: COLLISION RISK ASSESSMENT
A2: Sheet 3 - probability of collision for single bird transit through rotor
B4: All input data must be entered on Sheet 1, not here
B5: However the blade profile (orange) may be revised here to match the actual turbine blades used
B6: Calculated outputs
B7: Main output copied to sheet 1
D9: Calculation of alpha and p(collision) as a function of radius
A10: NoBlades | B10: ='Input data'!C33 -> 3 | G10: Upwind: | J10: Downwind:
A11: MaxChord | B11: ='Input data'!C38 -> 4.21 | C11: m | D11: r/R | E11: c/C | F11: a | G11: collide | J11: collide
A12: Pitch (degrees) | B12: ='Input data'!C39 -> 15 | C12: =B12*PI()/180 -> 0.2617993878 | D12: radius | E12: chord | F12: alpha | G12: length | H12: p(collision) | J12: length | K12: p(collision)
A14: Species name | B14: ='Input data'!C9 -> Gannet | D14: 0 | H14: 1 | K14: 1
A15: BirdLength | B15: ='Input data'!C10 -> 0.94 | C15: m | D15: =D14+B$27 -> 0.05 | E15: 0.73 | F15: =$B$19*$B$22/(D15*($B$20)*2*PI()) -> 4.999016921 | G15: =ABS($B$11*$E15*SIN($C$12)+($F15*$B$11*$E15*COS($C$12)))+IF($F15<$B$25,$B$15,$B$16*$C$17*$F15) -> 21.10926302 | H15: =MIN(1,($B$10/$B$22)*G15/$B$19) -> 0.7012808855 | J15: =ABS(-$B$11*$E15*SIN($C$12)+($F15*$B$11*$E15*COS($C$12)))+IF($F15<$B$25,$B$15,$B$16*$C$17*$F15) -> 19.51840588 | K15: =MIN(1,($B$10/$B$22)*J15/$B$19) -> 0.6484302623
A16: Wingspan | B16: ='Input data'!C11 -> 1.72 | C16: m | D16: =D15+B$27 -> 0.1 | E16: 0.79 | F16: =$B$19*$B$22/(D16*($B$20)*2*PI()) -> 2.499508461 | G16: =ABS($B$11*$E16*SIN($C$12)+($F16*$B$11*$E16*COS($C$12)))+IF($F16<$B$25,$B$15,$B$16*$C$17*$F16) -> 11.62758571 | H16: 0.3862855656 | J16: =ABS(-$B$11*$E16*SIN($C$12)+($F16*$B$11*$E16*COS($C$12)))+IF($F16<$B$25,$B$15,$B$16*$C$17*$F16) -> 9.905973189 | K16: 0.3290910556
A17: F: flapping (0) or gliding (+1) | B17: =IF('Input data'!$C$14="flapping",0,IF('Input data'!$C$14="gliding",1,"!Error in type!")) -> 1 | C17: =IF(B17,2/PI(),1) -> 0.6366197724 | D17: 0.15 | E17: 0.88 | F17: 1.666338974 | G17: 8.746587993 | H17: 0.2905745675 | J17: 6.828842396 | K17: 0.2268642273
A18: Proportion of flights upwind | B18: ='Input data'!C20 -> 0.5 | C18: % | D18: 0.2 | E18: 0.96 | F18: 1.24975423 | G18: 7.293404267 | H18: 0.2422976585 | J18: 5.201318161 | K18: 0.1727954691
A19: Bird speed | B19: ='Input data'!C12 -> 14.9 | C19: m/sec | D19: 0.25 | E19: 1 | F19: 0.9998033843 | G19: 6.250147078 | H19: 0.2076391143 | J19: 4.070890719 | K19: 0.1352410004
A20: Rotor Radius | B20: ='Input data'!C35 -> 57.5 | C20: m | D20: 0.3 | E20: 0.98 | F20: 0.8331694869 | G20: 5.300505562 | H20: 0.176090621 | J20: 3.164834329 | K20: 0.1051404693
A21: Rotation Speed | B21: ='Input data'!C34 -> 9.9 | C21: rpm | D21: 0.35 | E21: 0.92 | F21: 0.7141452745 | G21: 4.456214385 | H21: 0.1480420215 | J21: 2.451298534 | K21: 0.08143575668
A22: Rotation Period | B22: =60/B21 -> 6.060606061 | C22: sec | D22: 0.4 | E22: 0.85 | F22: 0.6248771152 | G22: 3.770344372 | H22: 0.125256407 | J22: 1.917976467 | K22: 0.06371801013
D23: 0.45 | E23: 0.8 | F23: 0.5554463246 | G23: 3.28690769 | H23: 0.1091959266 | J23: 1.543502602 | K23: 0.05127743543
D24: 0.5 | E24: 0.75 | F24: 0.4999016921 | G24: 3.281876703 | H24: 0.1090287898 | J24: 1.647434433 | K24: 0.05473020432
A25: Bird aspect ratio: b | B25: =B15/B16 -> 0.5465116279 | D25: 0.55 | E25: 0.7 | F25: 0.4544560838 | G25: 2.996386875 | H25: 0.09954439617 | J25: 1.470907423 | K25: 0.04886571639
D26: 0.6 | E26: 0.64 | F26: 0.4165847434 | G26: 2.72156155 | H26: 0.09041429311 | J26: 1.32683748 | K26: 0.04407950017
A27: Integration interval | B27: 0.05 | D27: 0.65 | E27: 0.58 | F27: 0.3845397632 | G27: 2.478958939 | H27: 0.08235467615 | J27: 1.21499025 | K27: 0.04036377005
D28: 0.7 | E28: 0.52 | F28: 0.3570726372 | G28: 2.261674173 | H28: 0.07513615541 | J28: 1.128460866 | K28: 0.03748913615
D29: 0.75 | E29: 0.47 | F29: 0.3332677948 | G29: 2.08909246 | H29: 0.06940273608 | J29: 1.064841971 | K29: 0.03537562251
D30: 0.8 | E30: 0.41 | F30: 0.3124385576 | G30: 1.907671539 | H30: 0.06337566524 | J30: 1.014176432 | K30: 0.03369243851
D31: 0.85 | E31: 0.37 | F31: 0.2940598189 | G31: 1.785611493 | H31: 0.05932065028 | J31: 0.9792866402 | K31: 0.03253334812
D32: 0.9 | E32: 0.3 | F32: 0.2777231623 | G32: 1.605700802 | H32: 0.05334375149 | J32: 0.9519238945 | K32: 0.0316243173
D33: 0.95 | E33: 0.24 | F33: 0.2631061538 | G33: 1.458294859 | H33: 0.0484467084 | J33: 0.9447266675 | K33: 0.03138521479
D34: 1 | E34: 0 | F34: 0.2499508461 | G34: 0.94 | H34: 0.03122818792 | J34: 0.94 | K34: 0.03122818792
D36: Overall p(collision) integrated over disk
G37: Upwind | H37: =2*(SUMPRODUCT($D15:$D33,H15:H33)+H34/2)*$B$27 -> 0.09539919371 | J37: Downwind | K37: =2*(SUMPRODUCT($D15:$D33,K15:K33)+K34/2)*$B$27 -> 0.05645350416
E38: Proportion upwind: downwind
D39: =B18 -> 0.5 | E39: =1-B18 -> 0.5 | H39: Average | I39: =(D39*H37+E39*K37) -> 0.07592634893 | J39: (copied to sheet 1)

Sheet Extended
A2: INPUTS | C2: Npoints | D2: 21 | F2: BASIC MODEL
C3: r/R | D3: c/C | F3: p(r) up | G3: p(r) down
A4: NoBlades | B4: ='Input data'!C33 -> 3 | C4: 0 | D4: 0.69
A5: Radius | B5: ='Input data'!C35 -> 57.5 | C5: 0.05 | D5: 0.73 | F5: =pcoll_rav($C5,"up") ->  | G5: =pcoll_rav($C5,"down") -> 
A6: Rotation speed | B6: ='Input data'!C34 -> 9.9 | C6: =C5+0.05 -> 0.1 | D6: 0.79 | F6: =pcoll_rav($C6,"up") -> 
A7: MaxChord | B7: ='Input data'!C38 -> 4.21 | C7: =C6+0.05 -> 0.15 | D7: 0.88 | F7: =pcoll_rav($C7,"up") -> 
A8: Pitch | B8: ='Input data'!C39 -> 15 | C8: =C7+0.05 -> 0.2 | D8: 0.96
A9: Hub height | B9: ='Input data'!C36 -> 80 | C9: 0.25 | D9: 1
A10: Tidal offset | B10: ='Input data'!C28 -> 2.5 | C10: 0.3 | D10: 0.98
C11: 0.35 | D11: 0.92
C12: 0.4 | D12: 0.85
A13: Species name | B13: ='Input data'!C9 -> Gannet | C13: 0.45 | D13: 0.8
A14: BirdLength | B14: ='Input data'!C10 -> 0.94 | C14: 0.5 | D14: 0.75
A15: Wingspan | B15: ='Input data'!C11 -> 1.72 | C15: 0.55 | D15: 0.7
A16: Bird speed | B16: ='Input data'!C12 -> 14.9 | C16: 0.6 | D16: 0.64
A17: Flight type | B17: ='Input data'!C14 -> gliding | C17: 0.65 | D17: 0.58
C18: 0.7 | D18: 0.52
C19: 0.75 | D19: 0.47
C20: 0.8 | D20: 0.41
C21: 0.85 | D21: 0.37
C22: 0.9 | D22: 0.3
C23: 0.95 | D23: 0.24
C24: 1 | D24: 0
F26: =2*(SUMPRODUCT($C5:$C23,F5:F23)+F24/2)*0.05 ->  | G26: =2*(SUMPRODUCT($C5:$C23,G5:G23)+G24/2)*0.05 ->  | H26: Average collision risks for flight through disk
F27: ='Input data'!C$20 -> 0.5 | G27: =1-F27 -> 0.5 | H27: Proportions upwind/downwind flight
G29: Average | H29: =F26*F27+G26*G27 -> 
B35: ALTERNATIVE MODEL USING FLIGHT HEIGHT DISTRIBUTION
B37: Flight height distribution
B38: =Flightheight!B6 -> Gannet
B40: y | C40: d(y) | D40: risk up | E40: risk down | F40: d(y) risk up | G40: d(y) risk down | I40: xinc | J40: yinc
B41: -1 | C41: =interpolate(Npoints,"flightheightdata",hubheight+B41*radius+offset)*radius -> 0.4841499915 | D41: =xrisksum2(B41,I$41,"up") ->  | E41: =xrisksum2(B41,I$41,"down") ->  | F41: =C41*D41 ->  | G41: =C41*E41 ->  | I41: 0.05 | J41: 0.05 | L41: x and y increments used in results below
B42: =B41+0.05 -> -0.95 | C42: 0.3385312506 | D42: =xrisksum2(B42,I$41,"up") ->  | E42: =xrisksum2(B42,I$41,"down") ->  | F42: =C42*D42 ->  | G42: =C42*E42 ->  | L42: (though set fixed at 0.05 for diagram)
B43: -0.9 | C43: 0.2134687488 | D43: =xrisksum2(B43,I$41,"up") -> 
B44: -0.85 | C44: 0.1247749996 | D44: =xrisksum2(B44,I$41,"up") -> 
B45: -0.8 | C45: 0.07072500302 | I45: Q'2R from flight distribution | M45: =0.05*(C41/2+C81/2+SUM(C42:C80)) -> 0.05676687492
B46: -0.75 | C46: 0.03644062468 | I46: Compare with Q2R input data | M46: ='Input data'!C19 -> 0.0828
B47: -0.7 | C47: 0.01739375024 | I47: Flux integral | M47: =(2/PI())*ydistsum(I41,J41,"",1) -> 0.02718899569
B48: -0.65 | C48: 0.007834375247
B49: -0.6 | C49: 0.004025000108 | I49: Collision integral | K49: (up) | L49: =(2/PI())*ydistsum(I41,J41,"up",0) ->  | M49: (down) | N49: =(2/PI())*ydistsum(I41,J41,"down",0) -> 
B50: -0.55 | C50: 0.001796875085 | I50: Proportions upwind/downwind flight | L50: ='Input data'!C20 -> 0.5 | N50: =1-L50 -> 0.5
B51: -0.5 | C51: 0.001149999971 | I51: Collision integral (average) | M51: =L49*L50+N49*N50 -> 
B52: -0.45 | C52: 0.0005749999855
B53: -0.4 | C53: 0.0005749999855
B54: -0.35 | C54: 0 | I54: Compare with Q2R * p from Option 2 | L54: =M45*bandup ->  | N54: =M45*banddown -> 
B55: -0.3 | C55: 0 | L55: =L49/L54 ->  | N55: =N49/N54 -> 
B56: -0.25 | C56: 0
B57: -0.2 | C57: 0
B58: -0.15 | C58: 0
B59: -0.1 | C59: 0
B60: -0.05 | C60: 0.0005749999855
B61: 3.191891196e-16 | C61: 0.0005749999855
B62: 0.05 | C62: 0.001365625044
B63: 0.1 | C63: 0.002299999942
B64: 0.15 | C64: 0.003521875042
B65: 0.2 | C65: 0.005749999855
B66: 0.25 | C66: 0.009056250346
B67: 0.3 | C67: 0.01193124965
B68: 0.35 | C68: 0.0126500001
B69: 0.4 | C69: 0.01121250003
B70: 0.45 | C70: 0.007618750278
B71: 0.5 | C71: 0.004887499981
B72: 0.55 | C72: 0.002803125008
B73: 0.6 | C73: 0.001149999971
B74: 0.65 | C74: 0.0005749999855
B75: 0.7 | C75: 0
B76: 0.75 | C76: 0
B77: 0.8 | C77: 0
B78: 0.85 | C78: 0
B79: 0.9 | C79: 0
B80: 0.95 | C80: 0
B81: 1 | C81: 0

Sheet Flightheight
A1: FLIGHT HEIGHT DISTRIBUTIONS
A2: D(Y) is relative frequency per m of height
J3: =SUM(J9:J180) -> 1
A4: Ensure birddata for current collision assessment is pasted into column B!
A6: Current bird: | B6: Gannet | D6: Gannet | F6: Kittiwake | H6: Fulmar | J6: Uniform
A7: No of points | B7: 155 | D7: 155 | F7: 150 | H7: 155 | J7: 155
A8: height Y above sea (m) | B8: D(Y) | D8: D(Y) | F8: D(Y) | H8: D(Y) | J8: D(Y)
A9: 0 | B9: 0.23317 | D9: 0.23317 | F9: 0.08571 | H9: 0.51408 | J9: 0
A10: 1 | B10: 0.15457 | D10: 0.15457 | F10: 0.0785 | H10: 0.23184 | J10: 0.03
A11: 2 | B11: 0.10506 | D11: 0.10506 | F11: 0.07175 | H11: 0.11113 | J11: 0.03
A12: 3 | B12: 0.07335 | D12: 0.07335 | F12: 0.06526 | H12: 0.0542 | J12: 0.03
A13: 4 | B13: 0.05355 | D13: 0.05355 | F13: 0.05987 | H13: 0.0274 | J13: 0.03
A14: 5 | B14: 0.03936 | D14: 0.03936 | F14: 0.05499 | H14: 0.01441 | J14: 0.03
A15: 6 | B15: 0.02885 | D15: 0.02885 | F15: 0.05095 | H15: 0.00782 | J15: 0.03
A16: 7 | B16: 0.02168 | D16: 0.02168 | F16: 0.0468 | H16: 0.00439 | J16: 0.03
A17: 8 | B17: 0.01673 | D17: 0.01673 | F17: 0.04263 | H17: 0.00257 | J17: 0.03
A18: 9 | B18: 0.01316 | D18: 0.01316 | F18: 0.03907 | H18: 0.00155 | J18: 0.03
A19: 10 | B19: 0.01077 | D19: 0.01077 | F19: 0.0359 | H19: 0.00098 | J19: 0.03
A20: 11 | B20: 0.00936 | D20: 0.00936 | F20: 0.03293 | H20: 0.00065 | J20: 0.005
A21: 12 | B21: 0.00871 | D21: 0.00871 | F21: 0.02997 | H21: 0.00045 | J21: 0.005
A22: 13 | B22: 0.00854 | D22: 0.00854 | F22: 0.02747 | H22: 0.00033 | J22: 0.005
A23: 14 | B23: 0.00877 | D23: 0.00877 | F23: 0.02505 | H23: 0.00025 | J23: 0.005
A24: 15 | B24: 0.00937 | D24: 0.00937 | F24: 0.02305 | H24: 0.00019 | J24: 0.005
A25: 16 | B25: 0.01009 | D25: 0.01009 | F25: 0.02118 | H25: 0.00016 | J25: 0.005
A26: 17 | B26: 0.01088 | D26: 0.01088 | F26: 0.01929 | H26: 0.00013 | J26: 0.005
A27: 18 | B27: 0.01151 | D27: 0.01151 | F27: 0.01765 | H27: 0.00012 | J27: 0.005
A28: 19 | B28: 0.01175 | D28: 0.01175 | F28: 0.01587 | H28: 0.0001 | J28: 0.005
A29: 20 | B29: 0.01167 | D29: 0.01167 | F29: 0.01398 | H29: 9e-05 | J29: 0.005
A30: 21 | B30: 0.01137 | D30: 0.01137 | F30: 0.01247 | H30: 9e-05 | J30: 0.005
A31: 22 | B31: 0.01079 | D31: 0.01079 | F31: 0.01115 | H31: 9e-05 | J31: 0.005
A32: 23 | B32: 0.01008 | D32: 0.01008 | F32: 0.00999 | H32: 8e-05 | J32: 0.005
A33: 24 | B33: 0.00924 | D33: 0.00924 | F33: 0.00895 | H33: 8e-05 | J33: 0.005
A34: 25 | B34: 0.00842 | D34: 0.00842 | F34: 0.00801 | H34: 8e-05 | J34: 0.005
A35: 26 | B35: 0.00757 | D35: 0.00757 | F35: 0.0071 | H35: 7e-05 | J35: 0.005
A36: 27 | B36: 0.00664 | D36: 0.00664 | F36: 0.00631 | H36: 7e-05 | J36: 0.005
A37: 28 | B37: 0.00578 | D37: 0.00578 | F37: 0.00565 | H37: 7e-05 | J37: 0.005
A38: 29 | B38: 0.00502 | D38: 0.00502 | F38: 0.00496 | H38: 7e-05 | J38: 0.005
A39: 30 | B39: 0.00429 | D39: 0.00429 | F39: 0.00444 | H39: 7e-05 | J39: 0.005
A40: 31 | B40: 0.00352 | D40: 0.00352 | F40: 0.00391 | H40: 7e-05 | J40: 0.005
A41: 32 | B41: 0.00296 | D41: 0.00296 | F41: 0.00345 | H41: 7e-05 | J41: 0.005
A42: 33 | B42: 0.00242 | D42: 0.00242 | F42: 0.00305 | H42: 7e-05 | J42: 0.005
A43: 34 | B43: 0.00202 | D43: 0.00202 | F43: 0.00271 | H43: 6e-05 | J43: 0.005
A44: 35 | B44: 0.00165 | D44: 0.00165 | F44: 0.00238 | H44: 6e-05 | J44: 0.005
A45: 36 | B45: 0.00137 | D45: 0.00137 | F45: 0.00213 | H45: 6e-05 | J45: 0.005
A46: 37 | B46: 0.00109 | D46: 0.00109 | F46: 0.00185 | H46: 5e-05 | J46: 0.005
A47: 38 | B47: 0.00088 | D47: 0.00088 | F47: 0.00164 | H47: 5e-05 | J47: 0.005
A48: 39 | B48: 0.00069 | D48: 0.00069 | F48: 0.00145 | H48: 5e-05 | J48: 0.005
A49: 40 | B49: 0.00054 | D49: 0.00054 | F49: 0.00128 | H49: 4e-05 | J49: 0.005
A50: 41 | B50: 0.00041 | D50: 0.00041 | F50: 0.00113 | H50: 4e-05 | J50: 0.005
A51: 42 | B51: 0.00032 | D51: 0.00032 | F51: 0.00101 | H51: 4e-05 | J51: 0.005
A52: 43 | B52: 0.00025 | D52: 0.00025 | F52: 0.00092 | H52: 3e-05 | J52: 0.005
A53: 44 | B53: 0.00019 | D53: 0.00019 | F53: 0.00081 | H53: 3e-05 | J53: 0.005
A54: 45 | B54: 0.00014 | D54: 0.00014 | F54: 0.00071 | H54: 3e-05 | J54: 0.005
A55: 46 | B55: 0.00011 | D55: 0.00011 | F55: 0.00063 | H55: 3e-05 | J55: 0.005
A56: 47 | B56: 9e-05 | D56: 9e-05 | F56: 0.00055 | H56: 3e-05 | J56: 0.005
A57: 48 | B57: 7e-05 | D57: 7e-05 | F57: 0.00048 | H57: 3e-05 | J57: 0.005
A58: 49 | B58: 5e-05 | D58: 5e-05 | F58: 0.00042 | H58: 3e-05 | J58: 0.005
A59: 50 | B59: 4e-05 | D59: 4e-05 | F59: 0.00038 | H59: 3e-05 | J59: 0.005
A60: 51 | B60: 3e-05 | D60: 3e-05 | F60: 0.00033 | H60: 3e-05 | J60: 0.005
A61: 52 | B61: 2e-05 | D61: 2e-05 | F61: 0.0003 | H61: 3e-05 | J61: 0.005
A62: 53 | B62: 2e-05 | D62: 2e-05 | F62: 0.00026 | H62: 3e-05 | J62: 0.005
A63: 54 | B63: 2e-05 | D63: 2e-05 | F63: 0.00023 | H63: 3e-05 | J63: 0.005
A64: 55 | B64: 1e-05 | D64: 1e-05 | F64: 0.00021 | H64: 3e-05 | J64: 0.005
A65: 56 | B65: 1e-05 | D65: 1e-05 | F65: 0.00018 | H65: 3e-05 | J65: 0.005
A66: 57 | B66: 1e-05 | D66: 1e-05 | F66: 0.00016 | H66: 3e-05 | J66: 0.005
A67: 58 | B67: 1e-05 | D67: 1e-05 | F67: 0.00015 | H67: 3e-05 | J67: 0.005
A68: 59 | B68: 1e-05 | D68: 1e-05 | F68: 0.00013 | H68: 3e-05 | J68: 0.005
A69: 60 | B69: 1e-05 | D69: 1e-05 | F69: 0.00012 | H69: 3e-05 | J69: 0.005
A70: 61 | B70: 0 | D70: 0 | F70: 0.0001 | H70: 3e-05 | J70: 0.005
A71: 62 | B71: 0 | D71: 0 | F71: 9e-05 | H71: 2e-05 | J71: 0.005
A72: 63 | B72: 0 | D72: 0 | F72: 8e-05 | H72: 2e-05 | J72: 0.005
A73: 64 | B73: 0 | D73: 0 | F73: 7e-05 | H73: 2e-05 | J73: 0.005
A74: 65 | B74: 0 | D74: 0 | F74: 7e-05 | H74: 2e-05 | J74: 0.005
A75: 66 | B75: 0 | D75: 0 | F75: 6e-05 | H75: 1e-05 | J75: 0.005
A76: 67 | B76: 0 | D76: 0 | F76: 5e-05 | H76: 1e-05 | J76: 0.005
A77: 68 | B77: 0 | D77: 0 | F77: 5e-05 | H77: 1e-05 | J77: 0.005
A78: 69 | B78: 0 | D78: 0 | F78: 4e-05 | H78: 1e-05 | J78: 0.005
A79: 70 | B79: 0 | D79: 0 | F79: 4e-05 | H79: 1e-05 | J79: 0.005
A80: 71 | B80: 0 | D80: 0 | F80: 3e-05 | H80: 1e-05 | J80: 0.005
A81: 72 | B81: 0 | D81: 0 | F81: 3e-05 | H81: 0 | J81: 0.005
A82: 73 | B82: 0 | D82: 0 | F82: 3e-05 | H82: 0 | J82: 0.005
A83: 74 | B83: 0 | D83: 0 | F83: 3e-05 | H83: 0 | J83: 0.005
A84: 75 | B84: 0 | D84: 0 | F84: 2e-05 | H84: 0 | J84: 0.005
A85: 76 | B85: 0 | D85: 0 | F85: 2e-05 | H85: 0 | J85: 0.005
A86: 77 | B86: 0 | D86: 0 | F86: 2e-05 | H86: 0 | J86: 0.005
A87: 78 | B87: 1e-05 | D87: 1e-05 | F87: 2e-05 | H87: 0 | J87: 0.005
A88: 79 | B88: 1e-05 | D88: 1e-05 | F88: 2e-05 | H88: 0 | J88: 0.005
A89: 80 | B89: 1e-05 | D89: 1e-05 | F89: 2e-05 | H89: 0 | J89: 0.005
A90: 81 | B90: 1e-05 | D90: 1e-05 | F90: 2e-05 | H90: 0 | J90: 0.005
A91: 82 | B91: 1e-05 | D91: 1e-05 | F91: 2e-05 | H91: 0 | J91: 0.005
A92: 83 | B92: 1e-05 | D92: 1e-05 | F92: 2e-05 | H92: 0 | J92: 0.005
A93: 84 | B93: 2e-05 | D93: 2e-05 | F93: 2e-05 | H93: 0 | J93: 0.005
A94: 85 | B94: 2e-05 | D94: 2e-05 | F94: 2e-05 | H94: 0 | J94: 0.005
A95: 86 | B95: 3e-05 | D95: 3e-05 | F95: 2e-05 | H95: 0 | J95: 0.005
A96: 87 | B96: 3e-05 | D96: 3e-05 | F96: 2e-05 | H96: 0 | J96: 0.005
A97: 88 | B97: 4e-05 | D97: 4e-05 | F97: 2e-05 | H97: 0 | J97: 0.005
A98: 89 | B98: 4e-05 | D98: 4e-05 | F98: 2e-05 | H98: 0 | J98: 0.005
A99: 90 | B99: 5e-05 | D99: 5e-05 | F99: 2e-05 | H99: 0 | J99: 0.005
A100: 91 | B100: 6e-05 | D100: 6e-05 | F100: 2e-05 | H100: 0 | J100: 0.005
A101: 92 | B101: 7e-05 | D101: 7e-05 | F101: 2e-05 | H101: 0 | J101: 0.005
A102: 93 | B102: 9e-05 | D102: 9e-05 | F102: 2e-05 | H102: 0 | J102: 0.005
A103: 94 | B103: 0.0001 | D103: 0.0001 | F103: 2e-05 | H103: 0 | J103: 0.005
A104: 95 | B104: 0.00012 | D104: 0.00012 | F104: 2e-05 | H104: 0 | J104: 0.005
A105: 96 | B105: 0.00014 | D105: 0.00014 | F105: 2e-05 | H105: 0 | J105: 0.005
A106: 97 | B106: 0.00016 | D106: 0.00016 | F106: 2e-05 | H106: 0 | J106: 0.005
A107: 98 | B107: 0.00018 | D107: 0.00018 | F107: 2e-05 | H107: 0 | J107: 0.005
A108: 99 | B108: 0.0002 | D108: 0.0002 | F108: 1e-05 | H108: 0 | J108: 0.005
A109: 100 | B109: 0.00021 | D109: 0.00021 | F109: 2e-05 | H109: 0 | J109: 0.005
A110: 101 | B110: 0.00022 | D110: 0.00022 | F110: 2e-05 | H110: 0 | J110: 0.005
A111: 102 | B111: 0.00022 | D111: 0.00022 | F111: 2e-05 | H111: 0 | J111: 0.005
A112: 103 | B112: 0.00022 | D112: 0.00022 | F112: 2e-05 | H112: 0 | J112: 0.005
A113: 104 | B113: 0.00021 | D113: 0.00021 | F113: 2e-05 | H113: 0 | J113: 0.005
A114: 105 | B114: 0.0002 | D114: 0.0002 | F114: 1e-05 | H114: 0 | J114: 0.005
A115: 106 | B115: 0.00019 | D115: 0.00019 | F115: 1e-05 | H115: 0 | J115: 0.005
A116: 107 | B116: 0.00017 | D116: 0.00017 | F116: 2e-05 | H116: 0 | J116: 0.005
A117: 108 | B117: 0.00014 | D117: 0.00014 | F117: 2e-05 | H117: 0 | J117: 0.005
A118: 109 | B118: 0.00012 | D118: 0.00012 | F118: 2e-05 | H118: 0 | J118: 0.005
A119: 110 | B119: 0.0001 | D119: 0.0001 | F119: 2e-05 | H119: 0 | J119: 0.005
A120: 111 | B120: 9e-05 | D120: 9e-05 | F120: 2e-05 | H120: 0 | J120: 0.005
A121: 112 | B121: 7e-05 | D121: 7e-05 | F121: 2e-05 | H121: 0 | J121: 0.005
A122: 113 | B122: 6e-05 | D122: 6e-05 | F122: 1e-05 | H122: 0 | J122: 0.005
A123: 114 | B123: 5e-05 | D123: 5e-05 | F123: 1e-05 | H123: 0 | J123: 0.005
A124: 115 | B124: 4e-05 | D124: 4e-05 | F124: 1e-05 | H124: 0 | J124: 0.005
A125: 116 | B125: 3e-05 | D125: 3e-05 | F125: 1e-05 | H125: 0 | J125: 0.005
A126: 117 | B126: 2e-05 | D126: 2e-05 | F126: 1e-05 | H126: 0 | J126: 0.005
A127: 118 | B127: 1e-05 | D127: 1e-05 | F127: 1e-05 | H127: 0 | J127: 0.005
A128: 119 | B128: 1e-05 | D128: 1e-05 | F128: 1e-05 | H128: 0 | J128: 0.005
A129: 120 | B129: 1e-05 | D129: 1e-05 | F129: 1e-05 | H129: 0 | J129: 0.005
A130: 121 | B130: 0 | D130: 0 | F130: 1e-05 | H130: 0 | J130: 0.005
A131: 122 | B131: 0 | D131: 0 | F131: 1e-05 | H131: 0 | J131: 0.005
A132: 123 | B132: 0 | D132: 0 | F132: 1e-05 | H132: 0 | J132: 0.005
A133: 124 | B133: 0 | D133: 0 | F133: 1e-05 | H133: 0 | J133: 0.005
A134: 125 | B134: 0 | D134: 0 | F134: 1e-05 | H134: 0 | J134: 0.005
A135: 126 | B135: 0 | D135: 0 | F135: 1e-05 | H135: 0 | J135: 0.005
A136: 127 | B136: 0 | D136: 0 | F136: 1e-05 | H136: 0 | J136: 0.005
A137: 128 | B137: 0 | D137: 0 | F137: 1e-05 | H137: 0 | J137: 0.005
A138: 129 | B138: 0 | D138: 0 | F138: 1e-05 | H138: 0 | J138: 0.005
A139: 130 | B139: 0 | D139: 0 | F139: 1e-05 | H139: 0 | J139: 0.005
A140: 131 | B140: 0 | D140: 0 | F140: 1e-05 | H140: 0 | J140: 0.005
A141: 132 | B141: 0 | D141: 0 | F141: 1e-05 | H141: 0 | J141: 0.005
A142: 133 | B142: 0 | D142: 0 | F142: 1e-05 | H142: 0 | J142: 0.005
A143: 134 | B143: 0 | D143: 0 | F143: 1e-05 | H143: 0 | J143: 0.005
A144: 135 | B144: 0 | D144: 0 | F144: 1e-05 | H144: 0 | J144: 0.005
A145: 136 | B145: 0 | D145: 0 | F145: 1e-05 | H145: 0 | J145: 0.005
A146: 137 | B146: 0 | D146: 0 | F146: 1e-05 | H146: 0 | J146: 0.005
A147: 138 | B147: 0 | D147: 0 | F147: 1e-05 | H147: 0 | J147: 0.005
A148: 139 | B148: 0 | D148: 0 | F148: 1e-05 | H148: 0 | J148: 0.005
A149: 140 | B149: 0 | D149: 0 | F149: 0 | H149: 0 | J149: 0.005
A150: 141 | B150: 0 | D150: 0 | F150: 0 | H150: 0 | J150: 0.005
A151: 142 | B151: 0 | D151: 0 | F151: 0 | H151: 0 | J151: 0.005
A152: 143 | B152: 0 | D152: 0 | F152: 0 | H152: 0 | J152: 0.005
A153: 144 | B153: 0 | D153: 0 | F153: 0 | H153: 0 | J153: 0.005
A154: 145 | B154: 0 | D154: 0 | F154: 0 | H154: 0 | J154: 0.005
A155: 146 | B155: 0 | D155: 0 | F155: 0 | H155: 0 | J155: 0.005
A156: 147 | B156: 0 | D156: 0 | F156: 0 | H156: 0 | J156: 0.005
A157: 148 | B157: 0 | D157: 0 | F157: 0 | H157: 0 | J157: 0.005
A158: 149 | B158: 0 | D158: 0 | F158: 0 | H158: 0 | J158: 0.005
A159: 150 | B159: 0 | D159: 0 | F159: 0 | H159: 0 | J159: 0.005
A160: 151 | B160: 0 | D160: 0 | F160: 0 | H160: 0 | J160: 0
A161: 152 | B161: 0 | D161: 0 | F161: 0 | H161: 0 | J161: 0
A162: 153 | B162: 0 | D162: 0 | F162: 0 | H162: 0 | J162: 0
A163: 154 | B163: 0 | D163: 0 | F163: 0 | H163: 0 | J163: 0
A164: 155 | B164: 0 | D164: 0 | F164: 0 | H164: 0 | J164: 0

Sheet Daylight and night hours
A1: COLLISION RISK ASSESSMENT
A2: Sheet 4 - Daylight and night hours
A4: Latitude = | B4: ='Input data'!C25 -> 55.8 | C4: central latitude of the proposal, copied from the input data shoet: do not enter here
A6: Taken from Forsythe et al.(1995) A model comparison for daylength as a function of latitude and day of year. Ecological Modelling. 80: 87 - 95
B8: P | C8: Daylength | F8: Monthly available daylight hours
A9: 1 | B9: =ASIN(0.39795*COS(0.2163108+2*ATAN(0.9671396*TAN(0.0086*(A9-186))))) -> -0.4027006507 | C9: =24-(24/PI())*ACOS((SIN(0.8333*PI()/180)+SIN($B$4*PI()/180)*SIN(B9))/(COS($B$4*PI()/180)*COS(B9))) -> 7.096541726 | D9: 2009-01-01 | F9: Jan | G9: Feb | H9: March | I9: April | J9: May | K9: June | L9: July | M9: August | N9: Sept | O9: Oct | P9: Nov | Q9: Dec
A10: =A9+1 -> 2 | B10: -0.401297999 | C10: 7.119598975 | D10: =D9+1 -> 2009-01-02 | F10: =SUM(C9:C39) -> 238.788882 | G10: =SUM(C40:C67) -> 267.4503139 | H10: =SUM(C68:C98) -> 365.6177067 | I10: =SUM(C99:C128) -> 424.0422743 | J10: =SUM(C129:C159) -> 503.6111447 | K10: =SUM(C160:C189) -> 523.4837294 | L10: =SUM(C190:C220) -> 524.8917234 | M10: =SUM(C221:C251) -> 467.391669 | N10: =SUM(C252:C281) -> 384.5526152 | O10: =SUM(C282:C312) -> 325.483178 | P10: =SUM(C313:C342) -> 250.821429 | Q10: =SUM(C343:C373) -> 220.7904523
A11: 3 | B11: -0.3997620441 | C11: 7.144757624 | D11: 2009-01-03
A12: 4 | B12: -0.3980935394 | C12: 7.171982226 | D12: 2009-01-04
A13: 5 | B13: -0.3962933046 | C13: 7.201234993 | D13: 2009-01-05 | F13: Monthly available nocturnal hours
A14: 6 | B14: -0.3943622234 | C14: 7.23247599 | D14: 2009-01-06 | F14: =F18-F10 -> 505.211118 | G14: 404.5496861 | H14: 378.3822933 | I14: 295.9577257 | J14: 240.3888553 | K14: 196.5162706 | L14: 219.1082766 | M14: 276.608331 | N14: 335.4473848 | O14: 418.516822 | P14: 469.178571 | Q14: 523.2095477
A15: 7 | B15: -0.3923012431 | C15: 7.265663335 | D15: 2009-01-07
A16: 8 | B16: -0.390111372 | C16: 7.300753391 | D16: 2009-01-08
A17: 9 | B17: -0.3877936789 | C17: 7.337700975 | D17: 2009-01-09 | F17: Monthly available total hours
A18: 10 | B18: -0.3853492906 | C18: 7.376459554 | D18: 2009-01-10 | F18: =31*24 -> 744 | G18: =28*24 -> 672 | H18: =31*24 -> 744 | I18: =30*24 -> 720 | J18: =31*24 -> 744 | K18: =30*24 -> 720 | L18: =31*24 -> 744 | M18: =31*24 -> 744 | N18: =30*24 -> 720 | O18: =31*24 -> 744 | P18: =30*24 -> 720 | Q18: =31*24 -> 744
A19: 11 | B19: -0.3827793907 | C19: 7.416981444 | D19: 2009-01-11
A20: 12 | B20: -0.3800852176 | C20: 7.459218005 | D20: 2009-01-12
A21: 13 | B21: -0.3772680626 | C21: 7.503119832 | D21: 2009-01-13 | H21: these data are copied automatically to the 'overall collision risk' sheet
A22: 14 | B22: -0.3743292684 | C22: 7.548636937 | D22: 2009-01-14
A23: 15 | B23: -0.3712702266 | C23: 7.595718924 | D23: 2009-01-15
A24: 16 | B24: -0.3680923764 | C24: 7.644315162 | D24: 2009-01-16
A25: 17 | B25: -0.3647972021 | C25: 7.69437494 | D25: 2009-01-17
A26: 18 | B26: -0.3613862315 | C26: 7.745847621 | D26: 2009-01-18
A27: 19 | B27: -0.3578610336 | C27: 7.798682782 | D27: 2009-01-19
A28: 20 | B28: -0.354223217 | C28: 7.852830346 | D28: 2009-01-20
A29: 21 | B29: -0.3504744273 | C29: 7.908240702 | D29: 2009-01-21
A30: 22 | B30: -0.3466163457 | C30: 7.964864815 | D30: 2009-01-22
A31: 23 | B31: -0.3426506868 | C31: 8.022654331 | D31: 2009-01-23
A32: 24 | B32: -0.3385791963 | C32: 8.081561667 | D32: 2009-01-24
A33: 25 | B33: -0.3344036496 | C33: 8.141540092 | D33: 2009-01-25
A34: 26 | B34: -0.3301258497 | C34: 8.202543797 | D34: 2009-01-26
A35: 27 | B35: -0.3257476251 | C35: 8.264527965 | D35: 2009-01-27
A36: 28 | B36: -0.321270828 | C36: 8.327448821 | D36: 2009-01-28
A37: 29 | B37: -0.3166973329 | C37: 8.39126368 | D37: 2009-01-29
A38: 30 | B38: -0.3120290342 | C38: 8.455930986 | D38: 2009-01-30
A39: 31 | B39: -0.307267845 | C39: 8.521410345 | D39: 2009-01-31
A40: 32 | B40: -0.3024156949 | C40: 8.587662549 | D40: 2009-02-01
A41: 33 | B41: -0.297474529 | C41: 8.654649592 | D41: 2009-02-02
A42: 34 | B42: -0.2924463057 | C42: 8.72233469 | D42: 2009-02-03
A43: 35 | B43: -0.2873329957 | C43: 8.790682279 | D43: 2009-02-04
A44: 36 | B44: -0.2821365801 | C44: 8.859658025 | D44: 2009-02-05
A45: 37 | B45: -0.2768590492 | C45: 8.929228819 | D45: 2009-02-06
A46: 38 | B46: -0.271502401 | C46: 8.999362768 | D46: 2009-02-07
A47: 39 | B47: -0.2660686403 | C47: 9.070029189 | D47: 2009-02-08
A48: 40 | B48: -0.2605597767 | C48: 9.141198594 | D48: 2009-02-09
A49: 41 | B49: -0.2549778243 | C49: 9.212842674 | D49: 2009-02-10
A50: 42 | B50: -0.2493247999 | C50: 9.284934278 | D50: 2009-02-11
A51: 43 | B51: -0.2436027221 | C51: 9.357447394 | D51: 2009-02-12
A52: 44 | B52: -0.2378136107 | C52: 9.430357125 | D52: 2009-02-13
A53: 45 | B53: -0.2319594849 | C53: 9.503639662 | D53: 2009-02-14
A54: 46 | B54: -0.2260423635 | C54: 9.577272259 | D54: 2009-02-15
A55: 47 | B55: -0.2200642628 | C55: 9.651233206 | D55: 2009-02-16
A56: 48 | B56: -0.2140271971 | C56: 9.725501796 | D56: 2009-02-17
A57: 49 | B57: -0.2079331769 | C57: 9.800058299 | D57: 2009-02-18
A58: 50 | B58: -0.201784209 | C58: 9.87488393 | D58: 2009-02-19
A59: 51 | B59: -0.1955822951 | C59: 9.949960815 | D59: 2009-02-20
A60: 52 | B60: -0.1893294322 | C60: 10.02527197 | D60: 2009-02-21
A61: 53 | B61: -0.1830276111 | C61: 10.10080124 | D61: 2009-02-22
A62: 54 | B62: -0.1766788165 | C62: 10.17653331 | D62: 2009-02-23
A63: 55 | B63: -0.1702850265 | C63: 10.25245365 | D63: 2009-02-24
A64: 56 | B64: -0.163848212 | C64: 10.32854847 | D64: 2009-02-25
A65: 57 | B65: -0.1573703364 | C65: 10.40480471 | D65: 2009-02-26
A66: 58 | B66: -0.1508533555 | C66: 10.48121 | D66: 2009-02-27
A67: 59 | B67: -0.1442992171 | C67: 10.55775262 | D67: 2009-02-28
A68: 60 | B68: -0.1377098606 | C68: 10.6344215 | D68: 2009-03-01
A69: 61 | B69: -0.1310872171 | C69: 10.71120613 | D69: 2009-03-02
A70: 62 | B70: -0.124433209 | C70: 10.78809659 | D70: 2009-03-03
A71: 63 | B71: -0.11774975 | C71: 10.86508351 | D71: 2009-03-04
A72: 64 | B72: -0.1110387449 | C72: 10.94215798 | D72: 2009-03-05
A73: 65 | B73: =ASIN(0.39795*COS(0.2163108+2*ATAN(0.9671396*TAN(0.0086*(A73-186))))) -> -0.1043020897 | C73: =24-(24/PI())*ACOS((SIN(0.8333*PI()/180)+SIN($B$4*PI()/180)*SIN(B73))/(COS($B$4*PI()/180)*COS(B73))) -> 11.01931162 | D73: 2009-03-06
A74: =A73+1 -> 66 | B74: -0.0975416715 | C74: 11.09653646 | D74: =D73+1 -> 2009-03-07
A75: 67 | B75: -0.09075936821 | C75: 11.17382496 | D75: 2009-03-08
A76: 68 | B76: -0.08395704896 | C76: 11.25116998 | D76: 2009-03-09
A77: 69 | B77: -0.07713657391 | C77: 11.32856472 | D77: 2009-03-10
A78: 70 | B78: -0.07029979434 | C78: 11.40600275 | D78: 2009-03-11
A79: 71 | B79: -0.06344855272 | C79: 11.48347792 | D79: 2009-03-12
A80: 72 | B80: -0.05658468285 | C80: 11.56098438 | D80: 2009-03-13
A81: 73 | B81: -0.04971000988 | C81: 11.63851654 | D81: 2009-03-14
A82: 74 | B82: -0.0428263505 | C82: 11.71606902 | D82: 2009-03-15
A83: 75 | B83: -0.03593551306 | C83: 11.79363667 | D83: 2009-03-16
A84: 76 | B84: -0.02903929771 | C84: 11.87121451 | D84: 2009-03-17
A85: 77 | B85: -0.02213949655 | C85: 11.94879771 | D85: 2009-03-18
A86: 78 | B86: -0.01523789385 | C86: 12.0263816 | D86: 2009-03-19
A87: 79 | B87: -0.008336266168 | C87: 12.10396158 | D87: 2009-03-20
A88: 80 | B88: -0.001436382569 | C88: 12.18153317 | D88: 2009-03-21
A89: 81 | B89: 0.005459995189 | C89: 12.25909192 | D89: 2009-03-22
A90: 82 | B90: 0.01235111246 | C90: 12.33663344 | D90: 2009-03-23
A91: 83 | B91: 0.0192352215 | C91: 12.41415335 | D91: 2009-03-24
A92: 84 | B92: 0.02611058129 | C92: 12.49164724 | D92: 2009-03-25
A93: 85 | B93: 0.0329754573 | C93: 12.56911069 | D93: 2009-03-26
A94: 86 | B94: 0.03982812132 | C94: 12.64653921 | D94: 2009-03-27
A95: 87 | B95: 0.04666685123 | C95: 12.72392825 | D95: 2009-03-28
A96: 88 | B96: 0.05348993081 | C96: 12.80127313 | D96: 2009-03-29
A97: 89 | B97: 0.06029564956 | C97: 12.87856907 | D97: 2009-03-30
A98: 90 | B98: 0.06708230247 | C98: 12.95581112 | D98: 2009-03-31
A99: 91 | B99: 0.0738481899 | C99: 13.03299418 | D99: 2009-04-01
A100: 92 | B100: 0.08059161733 | C100: 13.11011292 | D100: 2009-04-02
A101: 93 | B101: 0.08731089524 | C101: 13.18716184 | D101: 2009-04-03
A102: 94 | B102: 0.09400433892 | C102: 13.26413515 | D102: 2009-04-04
A103: 95 | B103: 0.1006702684 | C103: 13.34102683 | D103: 2009-04-05
A104: 96 | B104: 0.1073070081 | C104: 13.41783054 | D104: 2009-04-06
A105: 97 | B105: 0.1139128869 | C105: 13.49453966 | D105: 2009-04-07
A106: 98 | B106: 0.1204862382 | C106: 13.57114719 | D106: 2009-04-08
A107: 99 | B107: 0.1270253993 | C107: 13.6476458 | D107: 2009-04-09
A108: 100 | B108: 0.1335287117 | C108: 13.72402776 | D108: 2009-04-10
A109: 101 | B109: 0.1399945211 | C109: 13.80028492 | D109: 2009-04-11
A110: 102 | B110: 0.1464211769 | C110: 13.87640871 | D110: 2009-04-12
A111: 103 | B111: 0.1528070328 | C111: 13.95239007 | D111: 2009-04-13
A112: 104 | B112: 0.1591504463 | C112: 14.02821948 | D112: 2009-04-14
A113: 105 | B113: 0.1654497787 | C113: 14.10388688 | D113: 2009-04-15
A114: 106 | B114: 0.1717033958 | C114: 14.17938169 | D114: 2009-04-16
A115: 107 | B115: 0.1779096669 | C115: 14.25469274 | D115: 2009-04-17
A116: 108 | B116: 0.1840669658 | C116: 14.32980829 | D116: 2009-04-18
A117: 109 | B117: 0.1901736703 | C117: 14.40471595 | D117: 2009-04-19
A118: 110 | B118: 0.1962281629 | C118: 14.47940271 | D118: 2009-04-20
A119: 111 | B119: 0.2022288302 | C119: 14.55385488 | D119: 2009-04-21
A120: 112 | B120: 0.2081740638 | C120: 14.62805805 | D120: 2009-04-22
A121: 113 | B121: 0.2140622602 | C121: 14.7019971 | D121: 2009-04-23
A122: 114 | B122: 0.2198918208 | C122: 14.77565616 | D122: 2009-04-24
A123: 115 | B123: 0.2256611527 | C123: 14.84901857 | D123: 2009-04-25
A124: 116 | B124: 0.2313686685 | C124: 14.92206686 | D124: 2009-04-26
A125: 117 | B125: 0.237012787 | C125: 14.99478273 | D125: 2009-04-27
A126: 118 | B126: 0.2425919332 | C126: 15.06714704 | D126: 2009-04-28
A127: 119 | B127: 0.248104539 | C127: 15.13913974 | D127: 2009-04-29
A128: 120 | B128: 0.2535490435 | C128: 15.2107399 | D128: 2009-04-30
A129: 121 | B129: 0.2589238934 | C129: 15.28192564 | D129: 2009-05-01
A130: 122 | B130: 0.2642275435 | C130: 15.35267416 | D130: 2009-05-02
A131: 123 | B131: 0.2694584574 | C131: 15.42296165 | D131: 2009-05-03
A132: 124 | B132: 0.2746151077 | C132: 15.49276333 | D132: 2009-05-04
A133: 125 | B133: 0.2796959769 | C133: 15.56205343 | D133: 2009-05-05
A134: 126 | B134: 0.2846995579 | C134: 15.63080512 | D134: 2009-05-06
A135: 127 | B135: 0.2896243546 | C135: 15.69899057 | D135: 2009-05-07
A136: 128 | B136: 0.2944688825 | C136: 15.76658087 | D136: 2009-05-08
A137: 129 | B137: =ASIN(0.39795*COS(0.2163108+2*ATAN(0.9671396*TAN(0.0086*(A137-186))))) -> 0.2992316698 | C137: =24-(24/PI())*ACOS((SIN(0.8333*PI()/180)+SIN($B$4*PI()/180)*SIN(B137))/(COS($B$4*PI()/180)*COS(B137))) -> 15.83354609 | D137: 2009-05-09
A138: =A137+1 -> 130 | B138: 0.3039112578 | C138: 15.89985521 | D138: =D137+1 -> 2009-05-10
A139: 131 | B139: 0.3085062014 | C139: 15.96547616 | D139: 2009-05-11
A140: 132 | B140: 0.3130150708 | C140: 16.0303758 | D140: 2009-05-12
A141: 133 | B141: 0.3174364514 | C141: 16.09451995 | D141: 2009-05-13
A142: 134 | B142: 0.3217689452 | C142: 16.15787336 | D142: 2009-05-14
A143: 135 | B143: 0.3260111713 | C143: 16.22039977 | D143: 2009-05-15
A144: 136 | B144: 0.3301617674 | C144: 16.2820619 | D144: 2009-05-16
A145: 137 | B145: 0.3342193901 | C145: 16.34282147 | D145: 2009-05-17
A146: 138 | B146: 0.3381827162 | C146: 16.40263927 | D146: 2009-05-18
A147: 139 | B147: 0.3420504436 | C147: 16.46147515 | D147: 2009-05-19
A148: 140 | B148: 0.3458212923 | C148: 16.51928808 | D148: 2009-05-20
A149: 141 | B149: 0.3494940054 | C149: 16.57603622 | D149: 2009-05-21
A150: 142 | B150: 0.3530673502 | C150: 16.63167695 | D150: 2009-05-22
A151: 143 | B151: 0.356540119 | C151: 16.68616696 | D151: 2009-05-23
A152: 144 | B152: 0.3599111306 | C152: 16.7394623 | D152: 2009-05-24
A153: 145 | B153: 0.3631792308 | C153: 16.79151847 | D153: 2009-05-25
A154: 146 | B154: 0.3663432939 | C154: 16.84229052 | D154: 2009-05-26
A155: 147 | B155: 0.3694022235 | C155: 16.89173314 | D155: 2009-05-27
A156: 148 | B156: 0.3723549539 | C156: 16.93980076 | D156: 2009-05-28
A157: 149 | B157: 0.3752004505 | C157: 16.98644766 | D157: 2009-05-29
A158: 150 | B158: 0.3779377115 | C158: 17.03162814 | D158: 2009-05-30
A159: 151 | B159: 0.3805657688 | C159: 17.07529657 | D159: 2009-05-31
A160: 152 | B160: 0.3830836888 | C160: 17.11740762 | D160: 2009-06-01
A161: 153 | B161: 0.3854905734 | C161: 17.15791632 | D161: 2009-06-02
A162: 154 | B162: 0.3877855614 | C162: 17.19677829 | D162: 2009-06-03
A163: 155 | B163: 0.3899678288 | C163: 17.23394983 | D163: 2009-06-04
A164: 156 | B164: 0.3920365906 | C164: 17.26938815 | D164: 2009-06-05
A165: 157 | B165: 0.3939911008 | C165: 17.30305147 | D165: 2009-06-06
A166: 158 | B166: 0.3958306539 | C166: 17.33489927 | D166: 2009-06-07
A167: 159 | B167: 0.3975545855 | C167: 17.36489238 | D167: 2009-06-08
A168: 160 | B168: 0.3991622732 | C168: 17.39299323 | D168: 2009-06-09
A169: 161 | B169: 0.4006531371 | C169: 17.41916596 | D169: 2009-06-10
A170: 162 | B170: 0.4020266409 | C170: 17.44337664 | D170: 2009-06-11
A171: 163 | B171: 0.4032822923 | C171: 17.4655934 | D171: 2009-06-12
A172: 164 | B172: 0.4044196437 | C172: 17.48578662 | D172: 2009-06-13
A173: 165 | B173: 0.4054382928 | C173: 17.50392905 | D173: 2009-06-14
A174: 166 | B174: 0.406337883 | C174: 17.519996 | D174: 2009-06-15
A175: 167 | B175: 0.4071181038 | C175: 17.53396543 | D175: 2009-06-16
A176: 168 | B176: 0.4077786916 | C176: 17.54581808 | D176: 2009-06-17
A177: 169 | B177: 0.4083194295 | C177: 17.55553762 | D177: 2009-06-18
A178: 170 | B178: 0.4087401478 | C178: 17.56311068 | D178: 2009-06-19
A179: 171 | B179: 0.4090407244 | C179: 17.56852698 | D179: 2009-06-20
A180: 172 | B180: 0.4092210846 | C180: 17.57177936 | D180: 2009-06-21
A181: 173 | B181: 0.4092812015 | C181: 17.57286382 | D181: 2009-06-22
A182: 174 | B182: 0.4092210957 | C182: 17.57177956 | D182: 2009-06-23
A183: 175 | B183: 0.4090408355 | C183: 17.56852899 | D183: 2009-06-24
A184: 176 | B184: 0.4087405366 | C184: 17.56311769 | D184: 2009-06-25
A185: 177 | B185: 0.4083203622 | C185: 17.5555544 | D185: 2009-06-26
A186: 178 | B186: 0.4077805226 | C186: 17.54585097 | D186: 2009-06-27
A187: 179 | B187: 0.4071212745 | C187: 17.53402226 | D187: 2009-06-28
A188: 180 | B188: 0.4063429215 | C188: 17.52008611 | D188: 2009-06-29
A189: 181 | B189: 0.4054458129 | C189: 17.50406319 | D189: 2009-06-30
A190: 182 | B190: 0.4044303436 | C190: 17.48597691 | D190: 2009-07-01
A191: 183 | B191: 0.4032969534 | C191: 17.46585328 | D191: 2009-07-02
A192: 184 | B192: 0.4020461265 | C192: 17.4437208 | D192: 2009-07-03
A193: 185 | B193: 0.4006783908 | C193: 17.41961025 | D193: 2009-07-04
A194: 186 | B194: 0.3991943173 | C194: 17.39355462 | D194: 2009-07-05
A195: 187 | B195: 0.3975945191 | C195: 17.36558885 | D195: 2009-07-06
A196: 188 | B196: 0.395879651 | C196: 17.33574975 | D196: 2009-07-07
A197: 189 | B197: 0.3940504082 | C197: 17.30407575 | D197: 2009-07-08
A198: 190 | B198: 0.3921075259 | C198: 17.27060678 | D198: 2009-07-09
A199: 191 | B199: 0.3900517779 | C199: 17.23538408 | D199: 2009-07-10
A200: 192 | B200: 0.3878839762 | C200: 17.19845002 | D200: 2009-07-11
A201: 193 | B201: =ASIN(0.39795*COS(0.2163108+2*ATAN(0.9671396*TAN(0.0086*(A201-186))))) -> 0.3856049694 | C201: =24-(24/PI())*ACOS((SIN(0.8333*PI()/180)+SIN($B$4*PI()/180)*SIN(B201))/(COS($B$4*PI()/180)*COS(B201))) -> 17.15984793 | D201: 2009-07-12
A202: =A201+1 -> 194 | B202: 0.3832156424 | C202: 17.11962195 | D202: =D201+1 -> 2009-07-13
A203: 195 | B203: 0.3807169148 | C203: 17.07781683 | D203: 2009-07-14
... 172 more rows

Sheet Large array correction
A1: COLLISION RISK ASSESSMENT
A2: Sheet 5 - Large array correction factor
A4: Do not enter data on this sheet, unless to prescribe the number of turbine rows
A5: All the data below is derived from Sheets 1, 2 or 3 | J5: data from Sheet 1
J6: data from Sheet 2
A7: Number of turbines | B7: ='Input data'!C26 -> 200 | D7: Number of rows (optional) | J7: data from Sheet 3
A8: Rotor radius | B8: ='Input data'!C35 -> 57.5 | D8: (if this is left blank, number is assumed to be sqrt(T) | J8: data to be entered here (optional)
A9: Width of windfarm | B9: ='Input data'!C27 -> 7.8 | D9: Number of turbines in each row | G9: =IF(G7="","",B7/G7) ->  | J9: calculated fields
A10: Average proportion of time operational | B10: ='Overall collision risk'!R16 -> 0.7631666667
A11: Collision risk from single rotor transit | B11: ='Single transit collision risk'!I39 -> 0.07592634893
A12: Assumed number of turbine rows | B12: =IF(G7="",B7^0.5,G7) -> 14.14213562
A14: Avoidance rate | B14: ='Input data'!C42 -> 0.96 | C14: ='Input data'!C43 -> 0.98 | D14: ='Input data'!C44 -> 0.99 | E14: ='Input data'!C45 -> 0.995
A16: Collision risk for single bird passage, before correction | B16: =$B7*(PI()*$B8*$B8)/(2*$B8*$B9*1000)*$B11*$B10*(1-B14) -> 0.005367783804 | C16: =$B7*(PI()*$B8*$B8)/(2*$B8*$B9*1000)*$B11*$B10*(1-C14) -> 0.002683891902 | D16: =$B7*(PI()*$B8*$B8)/(2*$B8*$B9*1000)*$B11*$B10*(1-D14) -> 0.001341945951 | E16: =$B7*(PI()*$B8*$B8)/(2*$B8*$B9*1000)*$B11*$B10*(1-E14) -> 0.0006709729756
A18: Large array correction factor | B18: =1-($B12-1)/(2*$B12)*B16 + ($B12-1)*($B12-2)/(6*$B12*$B12)*(B16*B16) -> 0.9975097194 | C18: =1-($B12-1)/(2*$B12)*C16 + ($B12-1)*($B12-2)/(6*$B12*$B12)*(C16*C16) -> 0.9987539018 | D18: =1-($B12-1)/(2*$B12)*D16 + ($B12-1)*($B12-2)/(6*$B12*$B12)*(D16*D16) -> 0.9993767114 | E18: =1-($B12-1)/(2*$B12)*E16 + ($B12-1)*($B12-2)/(6*$B12*$B12)*(E16*E16) -> 0.9996882959

Sheet Sheet1
